Cogmind - Beta 13 @@@ ROGUE MODE // 2024.04.01 @ 21:40:30 Player: donk Result: Destroyed by G-34 Mercenary with Small Laser Performance ------------- Evolutions (0) 0 Regions Visited (1) 200 Robots Destroyed (8) 40 Value Destroyed (318) 318 Prototype IDs (0) 0 Alien Tech Used (0) 0 Bonus (0) 0 TOTAL SCORE: 558 Bonus ------- None Cogmind --------- Core Integrity 0/250 Matter 257/300 Energy 100/100 System Corruption 1% Temperature Cool (6) Movement Walking (120) Location -10/Materials Parts ------- > --- POWER (1) -------- (None) > --- PROPULSION (2) --- Aluminum Leg Wheel > --- UTILITY (2) ------ (None) > --- WEAPON (2) ------- Assault Rifle > --- INVENTORY (5) ---- (None) Peak State ------------ > --- POWER ------------ Light Ion Engine > --- PROPULSION ------- Wheel Wheel > --- UTILITY ---------- (None) > --- WEAPON ----------- Particle Gun Assault Rifle > --- INVENTORY -------- Light Assault Rifle [Rating: 6] Favorites ----------- Power Light Ion Engine Engine Light Ion Engine Propulsion Wheel Leg Aluminum Leg Wheel Wheel Utility None Weapon Assault Rifle Energy Gun Particle Gun Ballistic Gun Assault Rifle Build | -11 -10 ------- Run | Yrd Mat Slots Evolved . | . . Power . | . . Propulsion . | . . Utility . | . . Weapon . | . . Parts Attached 8 | 5 3 Power 1 | 1 . Engine 1 | 1 . Core . | . . Reactor . | . . Propulsion 3 | 2 1 Treads . | . . Leg 1 | . 1 Wheel 2 | 2 . Hover . | . . Flight . | . . Utility . | . . Device . | . . Storage . | . . Processor . | . . Hackware . | . . Protection . | . . Artifact . | . . Weapon 4 | 2 2 Energy Gun 1 | . 1 Energy Cannon . | . . Ballistic Gun 3 | 2 1 Ballistic Cannon . | . . Launcher . | . . Special Weapon . | . . Impact Weapon . | . . Slashing Weapon . | . . Piercing Weapon . | . . Special Melee Weapon . | . . Unidentified Prototypes . | . . Parts Lost 3 | . 3 Power 1 | . 1 Propulsion 1 | . 1 Utility . | . . Weapon 1 | . 1 Highest Loss Streak 3 | . 3 To Critical Strikes . | . . Average Slot Usage (%) 67 | . 67 Engine 12 | . 12 Wheel 26 | . 26 Energy Gun 9 | . 9 Ballistic Gun 16 | . 16 Naked Turns . | . . Heaviest Build 8 | 6 8 Greatest Support 20 | 20 20 Greatest Overweight (x) . | . . Average Overweight (x) . | . . Largest Inventory Capacity 5 | 5 5 Average Capacity 5 | 5 5 Most Carried 4 | 4 2 Average Carried . | . . Final Capacity 5 | 5 5 Final Carried . | . . Class Distribution -------------------- 100% | Mutant Dominant Class ---------------- Mutant | -10/Materials Resources | -11 -10 ----------- Run | Yrd Mat Matter Collected 362 | 266 96 Remotely . | . . Salvage Created 320 | 35 285 Parts 18 | 1 17 Haulers Intercepted . | . . Recyclers Shooed . | . . Parts Field Recycled . | . . Retrieved Matter . | . . Parts Self-Destructed . | . . Prevented . | . . Kills | -11 -10 ------- Run | Yrd Mat Combat Hostiles Destroyed 8 | 1 7 Guns 8 | 1 7 Classes Destroyed 1 | 1 . Grunt 8 | 1 7 Best Kill Streak 4 | 1 4 Combat Bots Only 4 | 1 4 Max Kills in Single Turn 1 | 1 1 Gunslinging . | . . Exploded . | . . Melee . | . . Uniques/NPCs Destroyed . | . . Combat | -11 -10 -------- Run | Yrd Mat Hostile Shots Fired 77 | 5 72 Missed 24 | . 24 Damage Taken 635 | 54 581 Core 260 | 33 227 Absorbed by Shields . | . . Core Remaining (%) 86 | 86 . Volleys Fired 39 | 4 35 Largest 2 | 2 2 Hottest 85 | 40 85 Shots Fired 67 | 8 59 Gun 67 | 8 59 Cannon . | . . Launcher . | . . Special . | . . Kinetic 52 | 8 44 Thermal 15 | . 15 Explosive . | . . Electromagnetic . | . . Robot Hit Streak 7 | 4 7 Robot Miss Streak 2 | 1 2 Penetration Max . | . . Secondary Targets 3 | . 3 Max Gunslinging Chain 1 | . 1 Shots Hit Robots 44 | 6 38 Core Hits 18 | 2 16 Critical Kills 1 | . 1 Critical Parts Destroyed . | . . Critical Strikes 1 | . 1 Destroy 1 | . 1 Melee Attacks . | . . Impact . | . . Slashing . | . . Piercing . | . . Sneak Attacks . | . . Combat Hostiles . | . . Follow-up Attacks . | . . Damage Inflicted 565 | 59 506 Guns 565 | 59 506 Cannons . | . . Explosions . | . . Melee . | . . Ramming . | . . Kinetic 431 | 59 372 Thermal 134 | . 134 Explosive . | . . Electromagnetic . | . . Impact . | . . Slashing . | . . Piercing . | . . Highest Corruption 1 | . 1 Average Corruption 1 | . 1 Corruption Purged . | . . Corruption Blocked . | . . Effects 2 | . 2 Message Errors 1 | . 1 Matter Fused 1 | . 1 Overload Shots . | . . Overflow Damage . | . . Projectiles . | . . Explosions . | . . Melee . | . . Knockbacks . | . . Impact . | . . Kinetic . | . . Secondary . | . . Self-Inflicted Damage . | . . Shots . | . . Rammed . | . . Targets Rammed . | . . Kicked . | . . Crushed . | . . Highest Temperature 266 | 2 266 Average Temperature 78 | 1 82 Received Heat Transfer 348 | 30 318 Siege Activations . | . . Robots Corrupted . | . . Combat Hostiles . | . . Parts Fried . | . . Impact Corruptions . | . . Robots Melted . | . . Combat Hostiles . | . . Parts Melted . | . . Heat Transferred 333 | . 333 Parts Sabotaged . | . . Parts Stolen . | . . Parts Stripped . | . . Power Chain Reactions . | . . Alert | -11 -10 ------- Run | Yrd Mat Peak Influence 230 | 20 230 Initial . | . . Average 37 | 9 87 Maximum Alert Level 1 | . 1 Low Security (%) 97 | 100 93 Level 1 2 | . 6 Level 2 . | . . Level 3 . | . . Level 4 . | . . Level 5 . | . . High Security . | . . Max Security . | . . Squads Dispatched 2 | . 2 Investigation 1 | . 1 Extermination . | . . Reinforcement 1 | . 1 Assault . | . . Garrison . | . . Intercept . | . . Searches Triggered . | . . Construction Impeded . | . . Haulers Reinforced . | . . Active Scanning Responses . | . . Cargo Convoy Interrupts . | . . Stealth | -11 -10 --------- Run | Yrd Mat Distress Signals 1 | . 1 Communications Jammed . | . . Distress Signals . | . . Times Spotted 14 | 1 13 Peak Tracking Total 8 | 1 8 Tactical Retreats . | . . Traps | -11 -10 ------- Run | Yrd Mat Traps Triggered 1 | . 1 Indirectly . | . . Trap Hack Attempts . | . . Triggered . | . . Disarmed . | . . Reprogrammed . | . . Reused . | . . Traps Extracted . | . . Installed . | . . Triggered . | . . Machines | -11 -10 ---------- Run | Yrd Mat Machines Disabled 2 | . 2 Max in Single Turn 1 | . 1 Machines Repaired . | . . Machines Dismantled . | . . Machines Sabotaged . | . . Overloaded Fab Kills . | . . Hacking | -11 -10 --------- Run | Yrd Mat Machines Accessed 2 | . 2 Terminals 2 | . 2 Fabricators . | . . Repair Stations . | . . Recycling Units . | . . Scanalyzers . | . . Garrison Access . | . . Total Hacks 5 | . 5 Successful 5 | . 5 Failed . | . . Catastrophic . | . . Database Lockouts . | . . Manual . | . . Terminals 5 | . 5 Fabricators . | . . Repair Stations . | . . Recycling Units . | . . Scanalyzers . | . . Garrison Access . | . . Terminal Hacks 5 | . 5 Record 2 | . 2 Robot Analysis 1 | . 1 Alert Level 1 | . 1 Zone Layout 1 | . 1 Fabricator Hacks . | . . Repair Station Hacks . | . . Recycling Unit Hacks . | . . Scanalyzer . | . . Garrison Access Hacks . | . . Unauthorized Hacks . | . . Terminals . | . . Fabricators . | . . Repair Stations . | . . Recycling Units . | . . Scanalyzers . | . . Garrison Access . | . . Data Cores Recovered . | . . Used . | . . Hacking Detections 1 | . 1 Full Trace Events 1 | . 1 Feedback Events 1 | . 1 Corruption 1 | . 1 Feedback Blocked . | . . Robot Schematics Acquired . | . . Robots Built . | . . Authchips . | . . Time . | . . Total Robot Build Rating . | . . Part Schematics Acquired . | . . Parts Built . | . . Authchips . | . . Time . | . . Total Part Build Rating . | . . Parts Repaired . | . . Time . | . . Parts Recycled . | . . Recycled Matter . | . . Retrieved Matter . | . . Retrieved Components . | . . Parts Scanalyzed . | . . Part Schematics Acquired . | . . Parts Damaged . | . . Bothacking | -11 -10 ------------ Run | Yrd Mat Used RIF Installer . | . . Robots Hacked . | . . Non-combat . | . . Combat . | . . Robot Hacks Applied . | . . Relay Couplers Released . | . . Fabnet Peak Effective % . | . . Robots Rewired . | . . Allies Hacked . | . . Hacks Repelled . | . . Allies | -11 -10 -------- Run | Yrd Mat Total Allies . | . . Largest Group . | . . Highest-Rated Group . | . . Highest-Rated Ally . | . . Total Orders . | . . Ally Attacks . | . . Total Damage . | . . Kills . | . . Allies Corrupted . | . . Allies Melted . | . . Intel | -11 -10 ------- Run | Yrd Mat Robot Analysis Total 1 | . 1 Derelict Logs Recovered . | . . Drone Launches . | . . Drone Recoveries . | . . Exploration | -11 -10 ------------- Run | Yrd Mat Turns Passed 945 | 607 338 Spaces Moved 556 | 265 291 Core 25 | 25 . Treads . | . . Legs 1 | . 1 Wheels 530 | 240 290 Hover . | . . Flight . | . . Fastest Speed 50 | 50 80 Average Speed 78 | 77 80 Slowest Speed 120 | 80 120 Overloaded Moves . | . . Propulsion Burnouts . | . . Robots Hopped . | . . Cave-ins Triggered . | . . Exploration Rate (%) 28 | 14 42 Regions Visited 1 Branch Regions . Pre-discovered Areas . | . . Known Exits Taken . | . . Unknown Exits Taken 1 | 1 . Scrap Searched . | . . Spaces Dug . | . . Terrain Destroyed . | . . Melee . | . . Projectile . | . . AOE . | . . Terrain Rammed . | . . Walls Destroyed . | . . Machines Disabled . | . . Actions | -11 -10 --------- Run | Yrd Mat Total 1001 | 661 340 Wait 384 | 379 5 Move 555 | 264 291 Hop . | . . Pick Up 10 | 7 3 Fast Attach . | . . Attach 8 | 5 3 Detach 1 | . 1 Swap . | . . Drop 4 | 2 2 Fire 39 | 4 35 Melee . | . . Ram . | . . Kick . | . . Crush . | . . Escape Stasis . | . . Rewire . | . . Trap . | . . Miscellaneous . | . . Route ------- -11/Scrapyard -10/Materials History --------- Turn | Location | Event 2 | -11/Scrapyard | Met Revision 17 81 | -11/Scrapyard | Discovered new exit (range 8) 608 | -11/Scrapyard | Entered Materials 609 | -10/Materials | Build established: Mutant 889 | -10/Materials | Core integrity fell below 50% 920 | -10/Materials | Core integrity fell below 20% 946 | -10/Materials | Destroyed by G-34 Mercenary with Small Laser Last Messages --------------- K-01 Serf collects debris. R-06 Scavenger collects Sml. Laser. G-34 Mercenary destroyed. Switching to secondary target: G-34 Mercenary. K-01 Serf collects debris. Particle Gun destroyed. Acquired 40 matter. K-01 Serf collects debris. Acquired Aluminum Leg. Different forms of propulsion may not be used simultaneously, Wheel automatically deactivated. K-01 Serf collects debris. G-34 Mercenary destroyed. R-06 Scavenger collects Heat Sink. K-01 Serf collects debris. G-34 Mercenary destroyed. R-06 Scavenger collects Aluminum Leg. K-01 Serf collects debris. [Achievement: First Step to Greatness] Map ----- +----------------------------------------------------+ | ?????????????????# """ # # # | | ?????????????????# """ #+##+### # # | | ?????????????????# """ # # #/####### | | ?????????????????# # + #?????? | | ?????????????????########## #### #?????? | | ??????????????????????????# #??# #?????? | | ?????????????###??????????# #??# ##????? | | ?????????????# ??????????# #??# ###??? | | ?????????????# +?????????########??# # #??? | | ?????????????# #?????????????????? # #??? | | ?????????????# #????????????"""?? # # #??? | | ?????????????# #?????????""""""" # ###??? | | ?????????????# #???????? """"""" # #????? | | ?????????????# /???????? """"""" # #????? | | ?????????????# #?????????""""""" ?# #????? | | ?????????????# #??????????? ???# #????? | | ???????####### ##############+###### #????? | | ???# * #????? | | ???+ %= % #????? | | ???# #########/#########+####### ##+#+#####? | | ???#?????????? ????# #?# # #? | | ????????????? "?????# ""*%""" #?# # """ #? | | ????????????# "??????#*"""k""" #?#### """ #? | | ????????????# ???????#%"""%m"" #????# """ #? | | ????????????# ???????#!= g #????# #? | | ????????????#????????# @ #????# """ #? | | ?????????????????????# #????# """ #? | | ?????????????????????# #????# """ #? | | ?????????????????????###########????# #? | | ????????????????????????????????????##########? | | ??????????????????????????????????????????????? | | ??????????????????????????????????????????????? | | ??????????????????????????????????????????????? | | ??????????????????????????????????????????????? | | ??????????????????????????????????????????????? | | | | | | | | | | | | | | | | | | | | | | | | | | | | | | | +----------------------------------------------------+ Best States ------------- Heat Dissipation 25 Energy Generation 10 Energy Capacity 125 Matter Stores 300 Matter Capacity 300 Sight Range 16 Terrain Scan Density 10 Evasion (%) 50 Item Schematics ----------------- None Robot Schematics ------------------ None Fabricated ------------ Nothing Alien Tech Used ----------------- None Achievements -------------- First Step to Greatness Uninvited Guest Challenges ------------ None Game ------ Seed ProcessingFieldLauncher Manual? 0 Play Time 00:19:06 Cumulative 0.2 hours Start 2024.04.01 @ 21:21:15 End 2024.04.01 @ 21:40:30 Sessions 1 Manual Loads 0 Difficulty Rogue Special Mode None Game No. 1 Rogue 1 Adventurer 0 Explorer 0 Win Type - Total 0 Types 0/0/0/0/0/0/0/0/0 Lore% 0 Gallery% 0 Achievement% 0 Wizard Run 0 Options --------- Layout 1 ASCII 0 Keyboard 0 Movement Mouse Keybinds 0 Fullscreen 2 Font 24/Tallcaps Map View 50x35 Zoom Use 1% Tactical HUD 0 Map Filters NONE Filters NONE Steam 1 RUN: c0c8390a-6862-4d1f-ba9d-51a40c65ff73